Department family,Entity,Date,Expense type,Expense area,Supplier,Transaction number,Amount
Department of Health,University Hospitals of Morecambe Bay NHS Foundation Trust,05-Oct-22,Drugs,Pharmacy,Alloga UK Ltd,100369171,"52,236.46"
Department of Health,University Hospitals of Morecambe Bay NHS Foundation Trust,05-Oct-22,Drugs,Pharmacy,Baxter Healthcare Ltd,100369150,32013.4
Department of Health,University Hospitals of Morecambe Bay NHS Foundation Trust,05-Oct-22,Courier Services,Pathology,CTS (GB) Limited,100369617,"28,200.00"
Department of Health,University Hospitals of Morecambe Bay NHS Foundation Trust,05-Oct-22,Hardware,Information Technology,Dell Computer Corporation Ltd,100368481,"39,600.00"
Department of Health,University Hospitals of Morecambe Bay NHS Foundation Trust,05-Oct-22,Mobile MRI Scanner,Radiology,Diagnostic Healthcare Ltd,100366014,80700
Department of Health,University Hospitals of Morecambe Bay NHS Foundation Trust,05-Oct-22,Nursing Development Programme,Corporate,Excellence in Action c/o Grant Harrod Lerman Davis Ltd,100369302,"28,440.00"
Department of Health,University Hospitals of Morecambe Bay NHS Foundation Trust,05-Oct-22,Commercial Insurance,Corporate,Griffiths & Armour,100369577,"122,459.68"
Department of Health,University Hospitals of Morecambe Bay NHS Foundation Trust,05-Oct-22,Waiting List (Additional Capacity),Surgery,ICS Operations Ltd t/a Xyla Elective Care,100363467,"66,000.00"
Department of Health,University Hospitals of Morecambe Bay NHS Foundation Trust,05-Oct-22,Waiting List (Additional Capacity),Surgery,ICS Operations Ltd t/a Xyla Elective Care,100363971,"61,600.00"
Department of Health,University Hospitals of Morecambe Bay NHS Foundation Trust,05-Oct-22,Diabetes Consumables,Medicine,Medtronic Ltd,100363762,"26,729.74"
Department of Health,University Hospitals of Morecambe Bay NHS Foundation Trust,05-Oct-22,FP10 Prescriptions,Pharmacy,NHS Business Services Authority,100368930,64158.87
Department of Health,University Hospitals of Morecambe Bay NHS Foundation Trust,05-Oct-22,NHS Product Sales,Trust Wide,NHS Supply Chain,100368602,"222,028.02"
Department of Health,University Hospitals of Morecambe Bay NHS Foundation Trust,05-Oct-22,Agency Medical Staff - Management Costs,Trust Wide,Retinue Solutions Ltd,100367716,"57,941.82"
Department of Health,University Hospitals of Morecambe Bay NHS Foundation Trust,05-Oct-22,Agency Medical Staff - Management Costs,Trust Wide,Retinue Solutions Ltd,100368603,"49,678.16"
Department of Health,University Hospitals of Morecambe Bay NHS Foundation Trust,05-Oct-22,"Agency Nurses, Midwives & ODPs",Trust Wide,Retinue Solutions Ltd,100369564,"35,526.89"
Department of Health,University Hospitals of Morecambe Bay NHS Foundation Trust,05-Oct-22,Drugs,Pharmacy,Roche Products Limited,100369242,"35,473.44"
Department of Health,University Hospitals of Morecambe Bay NHS Foundation Trust,05-Oct-22,Drugs,Pharmacy,Sciensus Pharma Services Limited,100369176,"31,569.39"
Department of Health,University Hospitals of Morecambe Bay NHS Foundation Trust,05-Oct-22,Drugs,Pharmacy,Sciensus Pharma Services Limited,100369367,"31,042.14"
Department of Health,University Hospitals of Morecambe Bay NHS Foundation Trust,05-Oct-22,Building Contractor,Capital Services,The James Mercer Group Limited,100368561,"49,767.16"
Department of Health,University Hospitals of Morecambe Bay NHS Foundation Trust,06-Oct-22,Managed Service Contract,Pathology,Beckman Coulter UK,100366125,260479.99
Department of Health,University Hospitals of Morecambe Bay NHS Foundation Trust,06-Oct-22,Managed Service Contract,Pathology,Beckman Coulter UK,100367075,"304,739.16"
Department of Health,University Hospitals of Morecambe Bay NHS Foundation Trust,06-Oct-22,Managed Service Contract,Corporate,Carveti Partnership Ltd,100369674,50072.67
Department of Health,University Hospitals of Morecambe Bay NHS Foundation Trust,06-Oct-22,Managed Service Contract,Corporate,Carveti Partnership Ltd,100369676,"25,056.00"
Department of Health,University Hospitals of Morecambe Bay NHS Foundation Trust,06-Oct-22,Drugs,Pharmacy,Healthnet Homecare (UK) Limited,100369911,"46,073.69"
Department of Health,University Hospitals of Morecambe Bay NHS Foundation Trust,06-Oct-22,NHS Product Sales,Trust Wide,NHS Supply Chain,100369699,"290,205.92"
Department of Health,University Hospitals of Morecambe Bay NHS Foundation Trust,06-Oct-22,Bowel cancer Screening,Medicine,North Cumbria Integrated Care Nhs Foundation Trust,100369907,"39,178.00"
Department of Health,University Hospitals of Morecambe Bay NHS Foundation Trust,06-Oct-22,Recharge Specialist Registrars,Trust Wide,St Helens & Knowsley Hospitals Nhs Trust,100369908,"620,000.00"
Department of Health,University Hospitals of Morecambe Bay NHS Foundation Trust,10-Oct-22,Drugs,Pharmacy,AAH Pharmaceuticals Ltd,100370630,"151,142.43"
Department of Health,University Hospitals of Morecambe Bay NHS Foundation Trust,10-Oct-22,Drugs,Pharmacy,Alliance Medical Ltd,100370100,72415.32
Department of Health,University Hospitals of Morecambe Bay NHS Foundation Trust,10-Oct-22,Drugs,Pharmacy,Baxter Healthcare Ltd,100370426,35823.93
Department of Health,University Hospitals of Morecambe Bay NHS Foundation Trust,10-Oct-22,Drugs,Pharmacy,Baxter Healthcare Ltd,100370430,"51,507.14"
Department of Health,University Hospitals of Morecambe Bay NHS Foundation Trust,10-Oct-22,Rates,Estates & Facilities,Borough Of Barrow-In-Furness,100370344,"58,027.00"
Department of Health,University Hospitals of Morecambe Bay NHS Foundation Trust,10-Oct-22,Recruitment Services,Workforce,Chester Professional Services Ltd,100370125,"36,633.60"
Department of Health,University Hospitals of Morecambe Bay NHS Foundation Trust,10-Oct-22,Dictation Service,Medicine,DICT8 LTD,100365325,33027.98
Department of Health,University Hospitals of Morecambe Bay NHS Foundation Trust,10-Oct-22,Dictation Service,Medicine,DICT8 LTD,100368918,-30963.75
Department of Health,University Hospitals of Morecambe Bay NHS Foundation Trust,10-Oct-22,Dictation Service,Medicine,DICT8 LTD,100370183,35133.77
Department of Health,University Hospitals of Morecambe Bay NHS Foundation Trust,10-Oct-22,Laundry,Estates & Facilities,Elis Uk Ltd,100370017,"33,860.21"
Department of Health,University Hospitals of Morecambe Bay NHS Foundation Trust,10-Oct-22,External Audit,Corporate,Grant Thornton UK LLP,100368948,28950
Department of Health,University Hospitals of Morecambe Bay NHS Foundation Trust,10-Oct-22,Data Bank Subscription,Information Technology,iQ HealthTech Ltd,100370119,"106,200.00"
Department of Health,University Hospitals of Morecambe Bay NHS Foundation Trust,10-Oct-22,Rates,Estates & Facilities,Lancaster City Council,100370333,50773
Department of Health,University Hospitals of Morecambe Bay NHS Foundation Trust,10-Oct-22,Drugs,Pharmacy,Lloyds Pharmacy Limited,100370053,835859.62
Department of Health,University Hospitals of Morecambe Bay NHS Foundation Trust,10-Oct-22,Agency Medical Staff,Surgery,RMO International Heathcare LLP,100369682,"28,744.32"
Department of Health,University Hospitals of Morecambe Bay NHS Foundation Trust,10-Oct-22,Mobile Theatres,Theatres,Vanguard Healthcare Solutions Ltd,100370038,"52,974.60"
Department of Health,University Hospitals of Morecambe Bay NHS Foundation Trust,13-Oct-22,Scans & Xray Reporting,Radiology,4Ways Healthcare,100370892,"84,566.00"
Department of Health,University Hospitals of Morecambe Bay NHS Foundation Trust,13-Oct-22,Scans & Xray Reporting,Radiology,4Ways Healthcare,100370901,"41,937.42"
Department of Health,University Hospitals of Morecambe Bay NHS Foundation Trust,13-Oct-22,Drugs,Pharmacy,Baxter Healthcare Ltd,100371280,"27,190.55"
Department of Health,University Hospitals of Morecambe Bay NHS Foundation Trust,13-Oct-22,Design & Project Manangment,Capital Services,Inivos Limited t/a Health Spaces,100371129,"79,736.41"
Department of Health,University Hospitals of Morecambe Bay NHS Foundation Trust,13-Oct-22,Blood & Blood components contract,Core Clinical,NHS Blood and Transplant,100371236,"59,060.37"
Department of Health,University Hospitals of Morecambe Bay NHS Foundation Trust,13-Oct-22,Blood & Blood components contract,Core Clinical,NHS Blood and Transplant,100371237,"36,665.87"
Department of Health,University Hospitals of Morecambe Bay NHS Foundation Trust,13-Oct-22,NHS Product Sales,Trust Wide,NHS Supply Chain,100371111,264559.11
Department of Health,University Hospitals of Morecambe Bay NHS Foundation Trust,13-Oct-22,Payroll Services,Workforce,Northern Care Alliance Nhs Group (NCA),100370721,35770
Department of Health,University Hospitals of Morecambe Bay NHS Foundation Trust,13-Oct-22,Electricity Charges,Estates & Facilities,NPower,100371405,"65,767.42"
Department of Health,University Hospitals of Morecambe Bay NHS Foundation Trust,13-Oct-22,Electricity Charges,Estates & Facilities,NPower,100371418,29584.55
Department of Health,University Hospitals of Morecambe Bay NHS Foundation Trust,13-Oct-22,Electricity Charges,Estates & Facilities,NPower,100371421,"34,033.39"
Department of Health,University Hospitals of Morecambe Bay NHS Foundation Trust,13-Oct-22,Drugs,Pharmacy,Roche Products Limited,100370675,"45,402.16"
Department of Health,University Hospitals of Morecambe Bay NHS Foundation Trust,13-Oct-22,Drugs,Pharmacy,Sciensus Pharma Services Limited,100370733,"32,872.60"
Department of Health,University Hospitals of Morecambe Bay NHS Foundation Trust,13-Oct-22,Drugs,Pharmacy,Sciensus Pharma Services Limited,100371063,32893.77
Department of Health,University Hospitals of Morecambe Bay NHS Foundation Trust,13-Oct-22,Drugs,Pharmacy,Sciensus Pharma Services Limited,100371064,"27,481.08"
Department of Health,University Hospitals of Morecambe Bay NHS Foundation Trust,13-Oct-22,Recharge Specialist Registrars,Trust Wide,St Helens & Knowsley Hospitals Nhs Trust,100371247,32675.1
Department of Health,University Hospitals of Morecambe Bay NHS Foundation Trust,13-Oct-22,Software Licence,Information Technology,University Hospital Birmingham NHS Foundation Trust,100363912,"35,000.00"
Department of Health,University Hospitals of Morecambe Bay NHS Foundation Trust,13-Oct-22,Water Charges,Estates & Facilities,Water Plus,100371162,-29985.24
Department of Health,University Hospitals of Morecambe Bay NHS Foundation Trust,13-Oct-22,Water Charges,Estates & Facilities,Water Plus,100371168,29582.77
Department of Health,University Hospitals of Morecambe Bay NHS Foundation Trust,13-Oct-22,Water Charges,Estates & Facilities,Water Plus,100371215,29632.55
Department of Health,University Hospitals of Morecambe Bay NHS Foundation Trust,17-Oct-22,Drugs,Pharmacy,Aventis Pharma Ltd,100371373,"57,024.00"
Department of Health,University Hospitals of Morecambe Bay NHS Foundation Trust,17-Oct-22,Transport Services,Estates & Facilities,BFW Management Ltd t/a Atlas,100371694,"42,109.20"
Department of Health,University Hospitals of Morecambe Bay NHS Foundation Trust,17-Oct-22,Provider Collaborative Resource,Corporate,Lancashire Teaching Hospitals NHS Foundation Trust,100368486,"200,000.00"
Department of Health,University Hospitals of Morecambe Bay NHS Foundation Trust,17-Oct-22,Maintenance Contract,Radiology,NHS Supply Chain,100363931,"27,850.14"
Department of Health,University Hospitals of Morecambe Bay NHS Foundation Trust,17-Oct-22,Postal Franking,Estates & Facilities,Pitney Bowes,100371665,"25,012.70"
Department of Health,University Hospitals of Morecambe Bay NHS Foundation Trust,20-Oct-22,Mobile MRI Scanner,Radiology,Alliance Healthcare,100372351,"21,107.85"
Department of Health,University Hospitals of Morecambe Bay NHS Foundation Trust,20-Oct-22,Drugs,Pharmacy,Alliance Medical Ltd,100371037,"72,415.61"
Department of Health,University Hospitals of Morecambe Bay NHS Foundation Trust,20-Oct-22,Drugs,Pharmacy,Baxter Healthcare Ltd,100372340,"31,557.34"
Department of Health,University Hospitals of Morecambe Bay NHS Foundation Trust,20-Oct-22,Drugs,Pharmacy,Lloyds Pharmacy Clinical Homecare,100371937,26750.91
Department of Health,University Hospitals of Morecambe Bay NHS Foundation Trust,20-Oct-22,Consulting Engineers,Capital Services,Pettit Singleton Limited,100371371,"25,581.80"
Department of Health,University Hospitals of Morecambe Bay NHS Foundation Trust,20-Oct-22,"Agency Nurses, Midwives & ODPs",Trust Wide,Retinue Solutions Ltd,100371947,"41,816.79"
Department of Health,University Hospitals of Morecambe Bay NHS Foundation Trust,20-Oct-22,Drugs,Pharmacy,Sciensus Pharma Services Limited,100371925,"32,705.35"
Department of Health,University Hospitals of Morecambe Bay NHS Foundation Trust,20-Oct-22,Drugs,Pharmacy,Sciensus Pharma Services Limited,100371927,"31,273.87"
Department of Health,University Hospitals of Morecambe Bay NHS Foundation Trust,20-Oct-22,Drugs,Pharmacy,Sciensus Pharma Services Limited,100371928,29825.48
Department of Health,University Hospitals of Morecambe Bay NHS Foundation Trust,24-Oct-22,Maintenance Contract,Sterile Services,Belimed Limited,100372240,"43,056.96"
Department of Health,University Hospitals of Morecambe Bay NHS Foundation Trust,24-Oct-22,Rent & Service Charges,Corporate,Community Health Partnerships,100359697,"41,762.90"
Department of Health,University Hospitals of Morecambe Bay NHS Foundation Trust,24-Oct-22,Rent & Service Charges,Corporate,Community Health Partnerships,100364648,"41,762.90"
Department of Health,University Hospitals of Morecambe Bay NHS Foundation Trust,24-Oct-22,Rent & Service Charges,Corporate,Community Health Partnerships,100371066,"41,762.90"
Department of Health,University Hospitals of Morecambe Bay NHS Foundation Trust,24-Oct-22,CNST Premium,Corporate,NHS Resolution,100373057,1131004.2
Department of Health,University Hospitals of Morecambe Bay NHS Foundation Trust,24-Oct-22,Building Contractor,Capital Services,Pinington Construction,100372565,305964.85
Department of Health,University Hospitals of Morecambe Bay NHS Foundation Trust,24-Oct-22,Agency Medical Staff - Management Costs,Trust Wide,Retinue Solutions Ltd,100369565,"55,463.22"
Department of Health,University Hospitals of Morecambe Bay NHS Foundation Trust,24-Oct-22,Agency Medical Staff - Management Costs,Trust Wide,Retinue Solutions Ltd,100371491,"65,262.39"
Department of Health,University Hospitals of Morecambe Bay NHS Foundation Trust,24-Oct-22,Agency Medical Staff - Management Costs,Trust Wide,Retinue Solutions Ltd,100371948,"60,786.16"
Department of Health,University Hospitals of Morecambe Bay NHS Foundation Trust,24-Oct-22,Mobile Theatres,Theatres,Vanguard Healthcare Solutions Ltd,100369993,"43,154.58"
Department of Health,University Hospitals of Morecambe Bay NHS Foundation Trust,24-Oct-22,Managed Service Contract,Estates & Facilities,Veolia ES Resource Efficiency (UK),100371984,48002.9
Department of Health,University Hospitals of Morecambe Bay NHS Foundation Trust,24-Oct-22,Managed Service Contract,Estates & Facilities,Veolia ES Resource Efficiency (UK),100371992,"39,524.87"
Department of Health,University Hospitals of Morecambe Bay NHS Foundation Trust,24-Oct-22,Managed Service Contract,Estates & Facilities,Veolia ES Resource Efficiency (UK),100372016,"43,681.82"
Department of Health,University Hospitals of Morecambe Bay NHS Foundation Trust,24-Oct-22,Managed Service Contract,Estates & Facilities,Veolia ES Resource Efficiency (UK),100372073,42641.78
Department of Health,University Hospitals of Morecambe Bay NHS Foundation Trust,24-Oct-22,Managed Service Contract,Estates & Facilities,Veolia ES Resource Efficiency (UK),100372085,"42,641.78"
Department of Health,University Hospitals of Morecambe Bay NHS Foundation Trust,24-Oct-22,Managed Service Contract,Estates & Facilities,Veolia ES Resource Efficiency (UK),100372093,"43,681.82"
Department of Health,University Hospitals of Morecambe Bay NHS Foundation Trust,24-Oct-22,Managed Service Contract,Estates & Facilities,Veolia ES Resource Efficiency (UK),100372110,48002.9
Department of Health,University Hospitals of Morecambe Bay NHS Foundation Trust,24-Oct-22,Water Charges,Estates & Facilities,Water Plus,100348228,-27982.35
Department of Health,University Hospitals of Morecambe Bay NHS Foundation Trust,24-Oct-22,Water Charges,Estates & Facilities,Water Plus,100348229,"-28,911.94"
Department of Health,University Hospitals of Morecambe Bay NHS Foundation Trust,24-Oct-22,Water Charges,Estates & Facilities,Water Plus,100348230,"-40,106.75"
Department of Health,University Hospitals of Morecambe Bay NHS Foundation Trust,24-Oct-22,Water Charges,Estates & Facilities,Water Plus,100348231,"-37,270.02"
Department of Health,University Hospitals of Morecambe Bay NHS Foundation Trust,24-Oct-22,Water Charges,Estates & Facilities,Water Plus,100348232,"-38,475.99"
Department of Health,University Hospitals of Morecambe Bay NHS Foundation Trust,24-Oct-22,Water Charges,Estates & Facilities,Water Plus,100348234,229401.86
Department of Health,University Hospitals of Morecambe Bay NHS Foundation Trust,24-Oct-22,Water Charges,Estates & Facilities,Water Plus,100348235,"-28,109.82"
Department of Health,University Hospitals of Morecambe Bay NHS Foundation Trust,24-Oct-22,Water Charges,Estates & Facilities,Water Plus,100369024,-28871.1
Department of Health,University Hospitals of Morecambe Bay NHS Foundation Trust,24-Oct-22,Water Charges,Estates & Facilities,Water Plus,100369033,-30419.71
Department of Health,University Hospitals of Morecambe Bay NHS Foundation Trust,24-Oct-22,Water Charges,Estates & Facilities,Water Plus,100369044,-36175.52
Department of Health,University Hospitals of Morecambe Bay NHS Foundation Trust,24-Oct-22,Water Charges,Estates & Facilities,Water Plus,100369114,-26126.55
Department of Health,University Hospitals of Morecambe Bay NHS Foundation Trust,24-Oct-22,Water Charges,Estates & Facilities,Water Plus,100369123,-32713.35
Department of Health,University Hospitals of Morecambe Bay NHS Foundation Trust,24-Oct-22,Water Charges,Estates & Facilities,Water Plus,100369128,-60958.81
Department of Health,University Hospitals of Morecambe Bay NHS Foundation Trust,24-Oct-22,Water Charges,Estates & Facilities,Water Plus,100369585,-25452.21
Department of Health,University Hospitals of Morecambe Bay NHS Foundation Trust,24-Oct-22,Water Charges,Estates & Facilities,Water Plus,100369586,-26624.19
Department of Health,University Hospitals of Morecambe Bay NHS Foundation Trust,24-Oct-22,Water Charges,Estates & Facilities,Water Plus,100369587,-54177.13
Department of Health,University Hospitals of Morecambe Bay NHS Foundation Trust,24-Oct-22,Water Charges,Estates & Facilities,Water Plus,100369590,-229401.86
Department of Health,University Hospitals of Morecambe Bay NHS Foundation Trust,24-Oct-22,Water Charges,Estates & Facilities,Water Plus,100369591,-49414.79
Department of Health,University Hospitals of Morecambe Bay NHS Foundation Trust,24-Oct-22,Water Charges,Estates & Facilities,Water Plus,100369592,-29417.95
Department of Health,University Hospitals of Morecambe Bay NHS Foundation Trust,24-Oct-22,Water Charges,Estates & Facilities,Water Plus,100369593,-29415.55
Department of Health,University Hospitals of Morecambe Bay NHS Foundation Trust,24-Oct-22,Water Charges,Estates & Facilities,Water Plus,100369596,-29501.79
Department of Health,University Hospitals of Morecambe Bay NHS Foundation Trust,24-Oct-22,Water Charges,Estates & Facilities,Water Plus,100369597,-28430.12
Department of Health,University Hospitals of Morecambe Bay NHS Foundation Trust,24-Oct-22,Water Charges,Estates & Facilities,Water Plus,100369598,-26703.74
Department of Health,University Hospitals of Morecambe Bay NHS Foundation Trust,24-Oct-22,Water Charges,Estates & Facilities,Water Plus,100369599,-33079.03
Department of Health,University Hospitals of Morecambe Bay NHS Foundation Trust,24-Oct-22,Water Charges,Estates & Facilities,Water Plus,100369601,242134.76
Department of Health,University Hospitals of Morecambe Bay NHS Foundation Trust,24-Oct-22,Water Charges,Estates & Facilities,Water Plus,100369602,294999.04
Department of Health,University Hospitals of Morecambe Bay NHS Foundation Trust,24-Oct-22,Water Charges,Estates & Facilities,Water Plus,100369603,25365.17
Department of Health,University Hospitals of Morecambe Bay NHS Foundation Trust,24-Oct-22,Water Charges,Estates & Facilities,Water Plus,100369604,387960
Department of Health,University Hospitals of Morecambe Bay NHS Foundation Trust,27-Oct-22,Managed Service Contract,Pathology,Beckman Coulter UK,100373139,"285,920.01"
Department of Health,University Hospitals of Morecambe Bay NHS Foundation Trust,27-Oct-22,Waiting List (Additional Capacity),Surgery,BMI Healthcare Ltd,100372626,"113,914.59"
Department of Health,University Hospitals of Morecambe Bay NHS Foundation Trust,27-Oct-22,Recruitment Subscription,Workforce,BMJ Publishing Group,100373595,"27,031.20"
Department of Health,University Hospitals of Morecambe Bay NHS Foundation Trust,27-Oct-22,Gas,Estates & Facilities,Corona Energy Retail 4 Ltd,100373067,"28,537.62"
Department of Health,University Hospitals of Morecambe Bay NHS Foundation Trust,27-Oct-22,HQIP Charges,Capital Services,Lancashire Teaching Hospitals NHS Foundation Trust,100373150,"74,154.00"
Department of Health,University Hospitals of Morecambe Bay NHS Foundation Trust,27-Oct-22,NHS Product Sales,Trust Wide,NHS Supply Chain,100373601,"201,173.50"
Department of Health,University Hospitals of Morecambe Bay NHS Foundation Trust,27-Oct-22,Ambulance Contract (Non NHS),Estates & Facilities,North West Private Ambulance Liaison Services Ltd,100372909,"59,441.20"
Department of Health,University Hospitals of Morecambe Bay NHS Foundation Trust,27-Oct-22,Ambulance Contract (Non NHS),Estates & Facilities,North West Private Ambulance Liaison Services Ltd,100372912,"59,441.20"
Department of Health,University Hospitals of Morecambe Bay NHS Foundation Trust,27-Oct-22,Waiting List (Additional Capacity),Surgery,Primary Eyecare North Ltd,100369065,"41,558.60"
Department of Health,University Hospitals of Morecambe Bay NHS Foundation Trust,27-Oct-22,Waiting List (Additional Capacity),Surgery,Primary Eyecare North Ltd,100369072,42497.6
Department of Health,University Hospitals of Morecambe Bay NHS Foundation Trust,27-Oct-22,Waiting List (Additional Capacity),Surgery,Primary Eyecare North Ltd,100369076,"40,045.40"
Department of Health,University Hospitals of Morecambe Bay NHS Foundation Trust,27-Oct-22,"Agency Nurses, Midwives & ODPs",Trust Wide,Retinue Solutions Ltd,100373464,"35,464.52"
Department of Health,University Hospitals of Morecambe Bay NHS Foundation Trust,27-Oct-22,Agency Staff - AHPs,Trust Wide,Retinue Solutions Ltd,100373467,"27,454.51"
Department of Health,University Hospitals of Morecambe Bay NHS Foundation Trust,27-Oct-22,Drugs,Pharmacy,Sciensus Pharma Services Limited,100373142,"26,448.83"
Department of Health,University Hospitals of Morecambe Bay NHS Foundation Trust,27-Oct-22,Drugs,Pharmacy,Sciensus Pharma Services Limited,100373143,"29,362.81"
